[Event "Delancey UK Schools 2019 U18"]
[Site "Daventry"]
[Date "2019.09.24"]
[Round "1.9"]
[White "Stewart, Lilya"]
[Black "Pollack, Oscar"]
[Result "1/2-1/2"]
[ECO "C04"]
[WhiteElo "1567"]
[BlackElo "2112"]
[Annotator "ChessBase"]
[PlyCount "163"]
[EventDate "2019.09.24"]
[EventCountry "GBR"]
[SourceTitle "playchess.com"]
[Source "ChessBase"]
[SourceQuality "1"]
[TimeControl "40/5400+30:1800+30"]

1. e4 {[%emt 1:10:11]} e6 {[%emt 1:10:12]} 2. d4 {[%emt 0:00:22]} d5 {[%emt 0:00:21]} 3. Nd2 {[%emt 0:00:21]} Nc6 {[%emt 0:00:24]} 4. exd5 {[%emt 0:00:33]} exd5 {[%emt 0:00:24]} 5. c3 {[%emt 0:00:22]} Bf5 {[%emt 0:00:31]} 6. Ndf3 {[%emt 0:01:01]} Bd6 {[%emt 0:01:34]} 7. Bb5 {[%emt 0:02:23]} Nge7 {[%emt 0:01:02]} 8. Bg5 {[%emt 0:01:01]} f6 {[%emt 0:00:37]} 9. Be3 {[%emt 0:00:51]} Qd7 {[%emt 0:00:33]} 10. Ne2 {[%emt 0:01:13]} a6 11. Ba4 {[%emt 0:00:42]} O-O {[%emt 0:02:04]} 12. O-O {[%emt 0:00:46]} Bg4 {[%emt 0:01:18]} 13. Nf4 {[%emt 0:02:59]} Bxf4 {[%emt 0:04:17]} 14. Bxf4 {[%emt 0:00:30]} Ng6 {[%emt 0:01:13]} 15. Bg3 {[%emt 0:01:06]} Rae8 {[%emt 0:01:44]} 16. Qd3 {[%emt 0:01:02]} Bf5 {[%emt 0:01:23]} 17. Qd2 {[%emt 0:00:50]} b5 {[%emt 0:01:09]} 18. Bc2 {[%emt 0:01:06]} Be4 {[%emt 0:01:03]} 19. Ne1 {[%emt 0:01:55]} f5 {[%emt 0:01:18]} 20. f3 {[%emt 0:01:50]} Bxc2 {[%emt 0:00:50]} 21. Qxc2 {[%emt 0:00:40]} f4 {[%emt 0:00:54]} 22. Bf2 {[%emt 0:00:30]} Nce7 {[%emt 0:01:07]} 23. Nd3 {[%emt 0:00:36]} Nf5 {[%emt 0:00:37]} 24. Nc5 {[%emt 0:01:09]} Qd6 {[%emt 0:00:51]} 25. Rfe1 {[%emt 0:01:16]} Ne3 {[%emt 0:00:30]} 26. Qd3 {[%emt 0:00:30]} Kh8 {[%emt 0:00:30]} 27. Bxe3 {[%emt 0:00:30]} fxe3 {[%emt 0:00:30]} 28. Rxe3 {[%emt 0:00:30]} Nf4 {[%emt 0:03:11]} 29. Qd2 {[%emt 0:02:29]} Rxe3 {[%emt 0:00:41]} 30. Qxe3 {[%emt 0:00:24]} Qg6 {[%emt 0:00:27]} 31. g3 {[%emt 0:02:36]} Nh3+ {[%emt 0:00:30]} 32. Kh1 {[%emt 0:00:30]} Re8 {[%emt 0:00:30]} 33. Qd2 {[%emt 0:00:30]} Qf5 {[%emt 0:01:33]} 34. Kg2 {[%emt 0:01:54]} Ng5 {[%emt 0:00:30]} 35. Rf1 {[%emt 0:00:46]} Qh3+ {[%emt 0:00:45]} 36. Kg1 {[%emt 0:00:35]} h6 {[%emt 0:00:21]} 37. Nd3 {[%emt 0:00:27]} Qh5 {[%emt 0:00:34]} 38. Kg2 {[%emt 0:00:39]} Qh3+ {[%emt 0:00:47]} 39. Kg1 {[%emt 0:00:21]} Qf5 {[%emt 0:00:44]} 40. Nf4 {[%emt 0:00:37]} Nf7 {[%emt 0:00:43]} 41. Qd3 {[%emt 0:30:38]} Qg5 {[%emt 0:31:11]} 42. Qg6 {[%emt 0:00:50]} Qxg6 {[%emt 0:00:49]} 43. Nxg6+ {[%emt 0:00:21]} Kh7 {[%emt 0:00:21]} 44. Nf4 {[%emt 0:00:24]} c6 {[%emt 0:00:21]} 45. Kf2 {[%emt 0:00:22]} g5 {[%emt 0:00:50]} 46. Nd3 {[%emt 0:00:27]} Kg6 {[%emt 0:00:36]} 47. Re1 {[%emt 0:00:27]} Rxe1 {[%emt 0:00:20]} 48. Nxe1 {[%emt 0:00:22]} Nd6 {[%emt 0:00:23]} 49. b3 {[%emt 0:00:25]} Kf5 {[%emt 0:00:28]} 50. Nd3 {[%emt 0:00:21]} g4 {[%emt 0:00:30]} 51. fxg4+ {[%emt 0:00:22]} Kxg4 {[%emt 0:00:34]} 52. Ne5+ {[%emt 0:00:21]} Kf5 {[%emt 0:00:22]} 53. Nxc6 {[%emt 0:00:21]} Ne4+ {[%emt 0:00:23]} 54. Ke3 {[%emt 0:00:30]} Nxc3 {[%emt 0:00:25]} 55. a3 {[%emt 0:00:35]} Nd1+ {[%emt 0:00:55]} 56. Ke2 {[%emt 0:00:44]} Nc3+ {[%emt 0:00:35]} 57. Kd3 {[%emt 0:00:34]} Ne4 {[%emt 0:00:27]} 58. Nb4 {[%emt 0:00:31]} Nf2+ {[%emt 0:00:47]} 59. Ke2 {[%emt 0:00:35]} Ng4 {[%emt 0:00:22]} 60. Nxd5 {[%emt 0:00:31]} Nxh2 {[%emt 0:00:21]} 61. Nb4 {[%emt 0:00:55]} a5 {[%emt 0:00:24]} 62. Nc6 {[%emt 0:00:31]} Ke4 {[%emt 0:00:34]} 63. a4 {[%emt 0:00:53]} bxa4 {[%emt 0:00:39]} 64. bxa4 {[%emt 0:00:23]} Ng4 {[%emt 0:00:22]} 65. Nxa5 {[%emt 0:00:26]} Kxd4 {[%emt 0:00:22]} 66. Nb3+ {[%emt 0:00:23]} Kc4 {[%emt 0:00:34]} 67. Nd2+ {[%emt 0:00:22]} Kb4 {[%emt 0:00:22]} 68. Kf3 {[%emt 0:00:23]} h5 {[%emt 0:00:33]} 69. Ne4 {[%emt 0:00:24]} Kxa4 {[%emt 0:00:22]} 70. Ng5 {[%emt 0:00:28]} Kb5 {[%emt 0:00:28]} 71. Ne6 {[%emt 0:00:21]} Kc6 {[%emt 0:00:34]} 72. Nf4 {[%emt 0:00:22]} Ne5+ {[%emt 0:00:24]} 73. Ke4 {[%emt 0:00:25]} Nf7 {[%emt 0:00:25]} 74. Nxh5 {[%emt 0:00:05]} Kd7 {[%emt 0:00:21]} 75. Kf5 {[%emt 0:00:40]} Nd6+ {[%emt 0:00:28]} 76. Kg6 {[%emt 0:00:36]} Ke6 {[%emt 0:00:27]} 77. g4 {[%emt 0:00:33]} Nc4 {[%emt 0:00:27]} 78. Kh6 {[%emt 0:00:29]} Ne5 {[%emt 0:00:24]} 79. Nf4+ {[%emt 0:00:41]} Kd6 {[%emt 0:00:24]} 80. g5 {[%emt 0:00:37]} Nf7+ {[%emt 0:00:21]} 81. Kg6 {[%emt 0:00:24]} Nxg5 {[%emt 0:00:22]} 82. Kxg5 {[%emt 0:00:14] Kd5} 1/2-1/2

[Event "Delancey UK Schools 2019 U18"]
[Site "Daventry"]
[Date "2019.09.24"]
[Round "1.10"]
[White "Carroll, Thomas"]
[Black "Modhura, Urbi"]
[Result "1-0"]
[ECO "C13"]
[WhiteElo "2036"]
[BlackElo "1451"]
[Annotator "NA"]
[PlyCount "63"]
[EventDate "2019.09.24"]
[EventCountry "GBR"]
[SourceTitle "playchess.com"]
[Source "ChessBase"]
[SourceQuality "1"]
[TimeControl "40/5400+30:1800+30"]

1. d4 {[%emt 1:10:12]} Nf6 {[%emt 1:10:12]} 2. Bg5 {[%emt 0:00:22]} d5 {[%emt 0:00:29]} 3. Nd2 {[%emt 0:00:22]} e6 {[%emt 0:00:25]} 4. e4 {[%emt 0:00:22]} dxe4 {[%emt 0:00:28]} 5. Nxe4 {[%emt 0:00:23]} Be7 {[%emt 0:00:28]} 6. Bxf6 {[%emt 0:00:31]} Bxf6 {[%emt 0:00:23]} 7. Nf3 {[%emt 0:00:24]} Nd7 {[%emt 0:01:04]} 8. c3 {[%emt 0:00:34]} O-O {[%emt 0:01:00]} 9. Bd3 {[%emt 0:00:57]} h6 {[%emt 0:01:29]} 10. Qe2 {[%emt 0:00:45]} a6 {[%emt 0:01:49]} 11. h4 {[%emt 0:03:08]} b5 {[%emt 0:03:33]} 12. g4 {[%emt 0:01:23]} Bb7 {[%emt 0:05:17]} 13. g5 {[%emt 0:01:15]} hxg5 {[%emt 0:02:16]} 14. hxg5 {[%emt 0:01:33]} Be7 {[%emt 0:01:19]} 15. O-O-O {[%emt 0:04:00]} g6 {[%emt 0:02:10]} 16. Rh3 {[%emt 0:02:51]} Kg7 {[%emt 0:04:17]} 17. Rdh1 {[%emt 0:00:25]} Rh8 {[%emt 0:00:35]} 18. Rxh8 {[%emt 0:00:41]} Qxh8 {[%emt 0:00:23]} 19. Rxh8 {[%emt 0:00:23]} Rxh8 {[%emt 0:00:20]} 20. Qe3 {[%emt 0:01:52]} Nb6 {[%emt 0:00:59]} 21. Qf4 {[%emt 0:01:41]} Nd5 {[%emt 0:00:32]} 22. Qe5+ {[%emt 0:00:30]} Kg8 {[%emt 0:00:25]} 23. c4 {[%emt 0:02:38]} bxc4 {[%emt 0:00:31]} 24. Bxc4 {[%emt 0:00:28]} Kh7 {[%emt 0:00:52]} 25. Bxd5 {[%emt 0:00:59]} Bxd5 {[%emt 0:00:26]} 26. Nf6+ {[%emt 0:00:40]} Bxf6 {[%emt 0:00:22]} 27. Qxf6 {[%emt 0:00:23]} Rf8 {[%emt 0:00:33]} 28. Ne5 {[%emt 0:00:35]} Kg8 {[%emt 0:00:35]} 29. Nd7 {[%emt 0:00:37]} Rd8 {[%emt 0:00:43]} 30. Qxd8+ {[%emt 0:00:24]} Kg7 {[%emt 0:00:22]} 31. Qf8+ {[%emt 0:00:22]} Kh7 {[%emt 0:00:22]} 32. Nf6# {[%emt 0:00:22]} 1-0

[Event "Delancey UK Schools 2019 U18"]
[Site "Daventry"]
[Date "2019.09.24"]
[Round "1.13"]
[White "Audhora, Purba"]
[Black "Munshi, Aditya"]
[Result "0-1"]
[ECO "B18"]
[WhiteElo "1168"]
[BlackElo "2183"]
[Annotator "ChessBase"]
[PlyCount "70"]
[EventDate "2019.09.24"]
[EventCountry "GBR"]
[SourceTitle "playchess.com"]
[Source "ChessBase"]
[SourceQuality "1"]
[TimeControl "40/5400+30:1800+30"]

1. e4 {[%emt 1:10:11]} c6 {[%emt 1:10:11]} 2. d4 {[%emt 0:00:22]} d5 {[%emt 0:00:21]} 3. Nd2 {[%emt 0:00:24]} dxe4 {[%emt 0:00:21]} 4. Nxe4 {[%emt 0:00:22]} Bf5 {[%emt 0:00:22]} 5. Ng3 {[%emt 0:00:22]} Bg6 {[%emt 0:00:21]} 6. Nf3 {[%emt 0:00:09]} e6 7. c3 {[%emt 0:00:49]} Nf6 {[%emt 0:00:44]} 8. Bd3 {[%emt 0:01:26]} Be7 {[%emt 0:01:25]} 9. O-O {[%emt 0:01:08]} O-O {[%emt 0:00:22]} 10. Ne5 {[%emt 0:03:43]} c5 {[%emt 0:01:56]} 11. Bc4 {[%emt 0:02:40]} cxd4 {[%emt 0:03:12]} 12. cxd4 {[%emt 0:02:25]} Nc6 {[%emt 0:00:23]} 13. Nxg6 {[%emt 0:01:08]} hxg6 {[%emt 0:00:22]} 14. Be3 {[%emt 0:00:58]} Rc8 {[%emt 0:00:37]} 15. Bb3 {[%emt 0:00:49]} Qd6 {[%emt 0:05:07]} 16. Qd2 {[%emt 0:04:40]} Rfd8 {[%emt 0:00:27]} 17. Rad1 {[%emt 0:01:21]} Qc7 {[%emt 0:01:50]} 18. Qe2 {[%emt 0:01:13]} Rd7 {[%emt 0:00:43]} 19. h4 {[%emt 0:01:06]} Qa5 {[%emt 0:01:48]} 20. Bd2 {[%emt 0:01:47]} Qc7 {[%emt 0:01:52]} 21. Bc3 {[%emt 0:00:32]} Rcd8 {[%emt 0:00:58]} 22. Qe3 {[%emt 0:01:51]} b5 {[%emt 0:01:03]} 23. a3 {[%emt 0:00:40]} a5 {[%emt 0:00:40]} 24. Ne2 {[%emt 0:01:08]} b4 {[%emt 0:00:45]} 25. axb4 {[%emt 0:00:26]} axb4 {[%emt 0:00:21]} 26. Be1 {[%emt 0:00:31]} Nd5 {[%emt 0:02:45]} 27. Qf3 {[%emt 0:00:57]} Bxh4 {[%emt 0:00:48]} 28. Bxd5 {[%emt 0:00:31]} Rxd5 {[%emt 0:00:24]} 29. Qh3 {[%emt 0:00:35]} Bf6 {[%emt 0:00:35]} 30. Ng3 {[%emt 0:00:31]} Nxd4 {[%emt 0:00:32]} 31. Bxb4 {[%emt 0:00:29]} Ne2+ {[%emt 0:00:24]} 32. Kh1 {[%emt 0:00:17]} Nxg3+ {[%emt 0:00:13]} 33. Qxg3 {[%emt 0:00:01]} Qxg3 {[%emt 0:00:05]} 34. fxg3 {[%emt 0:00:02]} Rxd1 {[%emt 0:00:03]} 35. Rxd1 {[%emt 0:00:00]} Rxd1+ {[%emt 0:00:00]} 0-1

[Event "Delancey UK Schools 2019 U18"]
[Site "Daventry"]
[Date "2019.09.24"]
[Round "1.14"]
[White "Jaufarally, Nadia"]
[Black "Kirklys, Domantas"]
[Result "1-0"]
[ECO "C55"]
[WhiteElo "1991"]
[BlackElo "1125"]
[Annotator "NA"]
[PlyCount "150"]
[EventDate "2019.09.24"]
[EventCountry "GBR"]
[SourceTitle "playchess.com"]
[Source "ChessBase"]
[SourceQuality "1"]
[TimeControl "40/5400+30:1800+30"]

1. e4 {[%emt 1:22:44]} e5 {[%emt 1:10:12]} 2. Nf3 {[%emt 0:00:21]} Nc6 {[%emt 0:00:21]} 3. Bc4 {[%emt 0:00:22]} d6 {[%emt 0:00:25]} 4. c3 {[%emt 0:00:36]} Be6 {[%emt 0:00:45]} 5. Bb3 {[%emt 0:00:43]} Nf6 {[%emt 0:01:14]} 6. d3 {[%emt 0:00:43]} Be7 {[%emt 0:00:45]} 7. O-O {[%emt 0:00:47]} O-O {[%emt 0:00:24]} 8. Re1 {[%emt 0:00:49]} h6 {[%emt 0:01:17]} 9. h3 {[%emt 0:00:55]} Nh7 {[%emt 0:01:30]} 10. d4 {[%emt 0:00:46]} exd4 {[%emt 0:01:07]} 11. cxd4 {[%emt 0:00:30]} Bxb3 {[%emt 0:01:43]} 12. Qxb3 {[%emt 0:01:49]} Rb8 {[%emt 0:00:50]} 13. Nc3 {[%emt 0:01:48]} Ng5 {[%emt 0:01:05]} 14. Nxg5 {[%emt 0:00:23]} Bxg5 {[%emt 0:00:23]} 15. Bxg5 {[%emt 0:00:27]} Qxg5 {[%emt 0:00:22]} 16. Rad1 {[%emt 0:00:24]} Rfe8 {[%emt 0:02:08]} 17. Nd5 {[%emt 0:00:35]} Qd8 {[%emt 0:01:58]} 18. Qc3 {[%emt 0:01:05]} Rc8 {[%emt 0:01:19]} 19. b4 {[%emt 0:01:29]} Ne7 {[%emt 0:00:49]} 20. Nf4 {[%emt 0:00:36]} Ng6 {[%emt 0:01:02]} 21. Nxg6 {[%emt 0:00:32]} fxg6 {[%emt 0:00:22]} 22. e5 {[%emt 0:00:37]} Qd7 {[%emt 0:02:11]} 23. Qb3+ {[%emt 0:00:49]} Kh7 {[%emt 0:00:45]} 24. e6 {[%emt 0:00:33]} Qb5 {[%emt 0:01:56]} 25. d5 {[%emt 0:01:23]} c6 {[%emt 0:01:38]} 26. a4 {[%emt 0:00:32]} Qb6 {[%emt 0:01:19]} 27. Re4 {[%emt 0:00:46]} cxd5 {[%emt 0:01:12]} 28. Qxd5 {[%emt 0:00:23]} Rc7 {[%emt 0:02:05]} 29. Qxd6 {[%emt 0:00:31]} Qxd6 {[%emt 0:00:30]} 30. Rxd6 {[%emt 0:00:21]} Rce7 {[%emt 0:00:36]} 31. Rd7 {[%emt 0:00:51]} g5 {[%emt 0:01:12]} 32. Red4 {[%emt 0:00:34]} Kg6 {[%emt 0:00:47]} 33. Rxe7 {[%emt 0:00:30]} Rxe7 {[%emt 0:00:22]} 34. Rd7 {[%emt 0:00:23]} Kf6 {[%emt 0:00:27]} 35. Rd3 {[%emt 0:00:29]} Rxe6 {[%emt 0:00:49]} 36. Rd7 {[%emt 0:00:27]} Rb6 {[%emt 0:01:03]} 37. b5 {[%emt 0:00:23]} a6 {[%emt 0:00:03]} 38. bxa6 {[%emt 0:00:24]} bxa6 {[%emt 0:00:54]} 39. a5 {[%emt 0:00:29]} Rc6 {[%emt 0:00:29]} 40. Kf1 {[%emt 0:00:30]} g6 {[%emt 0:00:43]} 41. Ke2 {[%emt 0:30:35]} Kf5 {[%emt 0:30:48]} 42. Rf7+ {[%emt 0:00:43]} Ke6 {[%emt 0:00:27]} 43. Rg7 {[%emt 0:00:27]} Kd5 {[%emt 0:00:30]} 44. Kd3 {[%emt 0:00:42]} Kc5 {[%emt 0:00:32]} 45. Re7 {[%emt 0:00:26]} Kb5 {[%emt 0:00:34]} 46. Re5+ {[%emt 0:00:24]} Rc5 {[%emt 0:00:24]} 47. Re6 {[%emt 0:00:29]} Kxa5 {[%emt 0:00:36]} 48. Rxg6 {[%emt 0:00:21]} h5 {[%emt 0:00:24]} 49. Kd4 {[%emt 0:00:28]} Kb5 {[%emt 0:00:26]} 50. Rxa6 {[%emt 0:00:32]} Rc2 {[%emt 0:00:57]} 51. Rf6 {[%emt 0:00:24]} Re2 {[%emt 0:00:37]} 52. Kd3 {[%emt 0:00:22]} Re5 {[%emt 0:00:21]} 53. Kd4 {[%emt 0:00:26]} Rc5 {[%emt 0:00:33]} 54. Re6 {[%emt 0:00:25]} Rc4+ {[%emt 0:00:34]} 55. Kd3 {[%emt 0:00:23]} Rc5 {[%emt 0:00:29]} 56. Ke4 {[%emt 0:00:42]} Rc4+ {[%emt 0:00:31]} 57. Kf5 {[%emt 0:01:01]} Rc2 {[%emt 0:00:28]} 58. Kxg5 {[%emt 0:00:29]} Rxf2 {[%emt 0:00:22]} 59. g3 {[%emt 0:00:25]} Rf3 {[%emt 0:00:42]} 60. Kh4 {[%emt 0:00:23]} Rf5 {[%emt 0:00:25]} 61. Rh6 {[%emt 0:00:25]} Rf3 {[%emt 0:00:36]} 62. Rxh5+ {[%emt 0:00:22]} Kc6 {[%emt 0:00:21]} 63. Re5 {[%emt 0:00:22]} Kd6 {[%emt 0:00:22]} 64. Re1 {[%emt 0:00:22]} Rf8 {[%emt 0:00:25]} 65. g4 {[%emt 0:00:22]} Rh8+ {[%emt 0:00:26]} 66. Kg3 {[%emt 0:00:22]} Rg8 {[%emt 0:00:30]} 67. h4 {[%emt 0:00:22]} Rg6 {[%emt 0:00:39]} 68. h5 {[%emt 0:00:23]} Re6 {[%emt 0:00:31]} 69. Rxe6+ {[%emt 0:00:23]} Kxe6 {[%emt 0:00:22]} 70. Kf4 {[%emt 0:00:24]} Kf6 {[%emt 0:00:21]} 71. g5+ {[%emt 0:00:20]} Kg7 {[%emt 0:00:22]} 72. Kf5 {[%emt 0:00:22]} Kh7 {[%emt 0:00:23]} 73. g6+ {[%emt 0:00:35]} Kg7 {[%emt 0:00:21]} 74. Kg5 {[%emt 0:00:21]} Kg8 {[%emt 0:00:25]} 75. Kf6 {[%emt 0:00:22]} Kf8 {[%emt 0:00:07]} 1-0

[Event "Delancey UK Schools 2019 U18"]
[Site "Daventry"]
[Date "2019.09.24"]
[Round "2.1"]
[White "Kalavannan, Koby"]
[Black "Modi, Shyam Jagdish"]
[Result "1-0"]
[ECO "E73"]
[WhiteElo "2324"]
[BlackElo "2142"]
[Annotator "ChessBase"]
[PlyCount "91"]
[EventDate "2019.09.24"]
[EventCountry "GBR"]
[SourceTitle "playchess.com"]
[Source "ChessBase"]
[SourceQuality "1"]
[TimeControl "40/5400+30:1800+30"]

1. d4 {[%emt 1:10:11]} Nf6 {[%emt 1:10:11]} 2. c4 {[%emt 0:00:21]} g6 {[%emt 0:00:21]} 3. Nc3 {[%emt 0:00:21]} Bg7 {[%emt 0:00:21]} 4. e4 {[%emt 0:00:21]} d6 {[%emt 0:00:21]} 5. Be2 {[%emt 0:00:21]} O-O {[%emt 0:00:22]} 6. Be3 {[%emt 0:00:22]} e5 {[%emt 0:00:25]} 7. d5 {[%emt 0:00:21]} Na6 {[%emt 0:00:21]} 8. g4 {[%emt 0:00:21]} Nc5 {[%emt 0:00:21]} 9. Bf3 {[%emt 0:00:22]} Ne8 {[%emt 0:00:21]} 10. h4 {[%emt 0:00:29]} f5 {[%emt 0:00:29]} 11. gxf5 {[%emt 0:00:44]} gxf5 {[%emt 0:00:25]} 12. Nh3 {[%emt 0:00:45]} fxe4 {[%emt 0:02:51]} 13. Nxe4 {[%emt 0:00:31]} Bf5 {[%emt 0:00:40]} 14. Nxc5 {[%emt 0:00:59]} dxc5 {[%emt 0:00:21]} 15. Ng5 {[%emt 0:03:19]} Nd6 {[%emt 0:02:08]} 16. Bxc5 {[%emt 0:04:09]} h6 {[%emt 0:05:16]} 17. Ne6 {[%emt 0:00:59]} Bxe6 {[%emt 0:00:34]} 18. dxe6 {[%emt 0:00:21]} e4 {[%emt 0:01:11]} 19. Qd5 {[%emt 0:04:22]} Kh8 {[%emt 0:03:04]} 20. Bxe4 {[%emt 0:01:21]} Qf6 {[%emt 0:01:14]} 21. Rd1 {[%emt 0:01:37]} Nxe4 {[%emt 0:03:27]} 22. Qxe4 {[%emt 0:00:26]} Rfe8 {[%emt 0:00:42]} 23. e7 {[%emt 0:01:39]} b6 {[%emt 0:01:15]} 24. Ba3 {[%emt 0:01:58]} c5 {[%emt 0:01:45]} 25. Rd7 {[%emt 0:00:20]} Qe5 {[%emt 0:01:01]} 26. Qxe5 {[%emt 0:01:04]} Bxe5 {[%emt 0:00:22]} 27. Rg1 {[%emt 0:00:42]} Bf6 {[%emt 0:01:41]} 28. Rg6 {[%emt 0:01:55]} Rxe7+ {[%emt 0:00:22]} 29. Rxe7 Bxe7 {[%emt 0:00:21]} 30. Rxh6+ {[%emt 0:00:41]} Kg7 {[%emt 0:00:21]} 31. Re6 {[%emt 0:01:25]} Bxh4 {[%emt 0:00:17]} 32. b3 Rf8 {[%emt 0:00:51]} 33. Bb2+ {[%emt 0:00:45]} Kh7 {[%emt 0:01:04]} 34. Re2 {[%emt 0:00:41]} Kg6 {[%emt 0:00:21]} 35. Kf1 {[%emt 0:00:36]} Kf5 {[%emt 0:00:38]} 36. Kg2 {[%emt 0:00:30]} Kg6 {[%emt 0:01:14]} 37. Rd2 {[%emt 0:00:40]} Rf7 {[%emt 0:00:34]} 38. Be5 {[%emt 0:00:32]} Kf5 {[%emt 0:00:46]} 39. Bb8 {[%emt 0:01:22]} Ke4 {[%emt 0:00:42]} 40. Bh2 {[%emt 0:01:05]} Rg7+ {[%emt 0:00:42]} 41. Kf1 {[%emt 0:30:21]} Rf7 {[%emt 0:30:27]} 42. Bg1 {[%emt 0:00:36]} Bg5 {[%emt 0:00:27]} 43. Rd5 {[%emt 0:00:22]} Bf4 {[%emt 0:00:30]} 44. Ke2 {[%emt 0:00:25]} Bh6 {[%emt 0:00:40]} 45. Bh2 {[%emt 0:00:29]} Rf3 {[%emt 0:00:29]} 46. Re5+ {[%emt 0:00:24]} 1-0

[Event "Delancey UK Schools 2019 U18"]
[Site "Daventry"]
[Date "2019.09.24"]
[Round "2.2"]
[White "Modi, Kishan Jagdish"]
[Black "Willow, Jonah B"]
[Result "0-1"]
[ECO "B77"]
[WhiteElo "2004"]
[BlackElo "2327"]
[Annotator "ChessBase"]
[PlyCount "52"]
[EventDate "2019.09.24"]
[EventCountry "GBR"]
[SourceTitle "playchess.com"]
[Source "ChessBase"]
[SourceQuality "1"]
[TimeControl "40/5400+30:1800+30"]

1. e4 {[%emt 1:10:26]} c5 {[%emt 1:10:12]} 2. Nf3 {[%emt 0:00:21]} Nc6 {[%emt 0:00:23]} 3. d4 {[%emt 0:00:23]} cxd4 {[%emt 0:00:21]} 4. Nxd4 {[%emt 0:00:21]} g6 {[%emt 0:00:24]} 5. Nc3 {[%emt 0:00:23]} Bg7 {[%emt 0:00:21]} 6. Be3 {[%emt 0:00:21]} Nf6 {[%emt 0:00:21]} 7. Bc4 {[%emt 0:00:21]} O-O {[%emt 0:00:21]} 8. Bb3 {[%emt 0:00:21]} d6 {[%emt 0:00:24]} 9. f3 {[%emt 0:00:22]} Bd7 {[%emt 0:00:21]} 10. Qd2 {[%emt 0:00:21]} Nxd4 {[%emt 0:00:21]} 11. Bxd4 {[%emt 0:00:21]} b5 {[%emt 0:00:20]} 12. h4 {[%emt 0:00:22]} a5 {[%emt 0:00:21]} 13. h5 {[%emt 0:00:21]} a4 {[%emt 0:00:21]} 14. Bd5 {[%emt 0:00:26]} b4 {[%emt 0:00:28]} 15. Ne2 {[%emt 0:02:47]} Rc8 {[%emt 0:00:51]} 16. hxg6 {[%emt 0:00:23]} hxg6 {[%emt 0:00:26]} 17. Bxf6 {[%emt 0:00:23]} exf6 {[%emt 0:00:22]} 18. Nf4 {[%emt 0:00:26]} Re8 {[%emt 0:02:36]} 19. Nxg6 {[%emt 0:00:31]} Be6 {[%emt 0:01:10]} 20. Nf4 {[%emt 0:00:22]} f5 {[%emt 0:03:04]} 21. Nh5 {[%emt 0:00:34]} Bxb2 {[%emt 0:00:56]} 22. O-O {[%emt 0:02:05]} Bxd5 {[%emt 0:02:15]} 23. exd5 {[%emt 0:01:46]} Qh4 {[%emt 0:00:44]} 24. g4 {[%emt 0:01:08]} fxg4 {[%emt 0:01:02]} 25. fxg4 {[%emt 0:02:03]} Qxg4+ {[%emt 0:00:44]} 26. Qg2 {[%emt 0:00:21]} Qxg2+ {[%emt 0:00:24]} 0-1

[Event "Delancey UK Schools 2019 U18"]
[Site "Daventry"]
[Date "2019.09.24"]
[Round "2.3"]
[White "Munshi, Aditya"]
[Black "Stoyanov, Viktor"]
[Result "1-0"]
[ECO "B51"]
[WhiteElo "2183"]
[BlackElo "2272"]
[Annotator "ChessBase"]
[PlyCount "91"]
[EventDate "2019.09.24"]
[EventCountry "GBR"]
[SourceTitle "playchess.com"]
[Source "ChessBase"]
[SourceQuality "1"]
[TimeControl "40/5400+30:1800+30"]

1. e4 {[%emt 1:10:13]} c5 {[%emt 1:10:11]} 2. Nf3 {[%emt 0:00:23]} d6 {[%emt 0:00:21]} 3. Bb5+ {[%emt 0:00:22]} Nd7 {[%emt 0:00:21]} 4. O-O {[%emt 0:00:29]} a6 {[%emt 0:00:25]} 5. Bd3 {[%emt 0:00:21]} Ngf6 {[%emt 0:00:55]} 6. Re1 {[%emt 0:00:24]} e6 {[%emt 0:00:28]} 7. c3 {[%emt 0:00:35]} Be7 {[%emt 0:00:29]} 8. Bc2 {[%emt 0:00:31]} c4 {[%emt 0:00:32]} 9. a4 {[%emt 0:01:44]} O-O {[%emt 0:04:01]} 10. Qe2 {[%emt 0:01:28]} Qc7 {[%emt 0:03:11]} 11. Na3 {[%emt 0:00:27]} b5 {[%emt 0:04:19]} 12. axb5 {[%emt 0:00:26]} Bb7 {[%emt 0:02:04]} 13. d3 {[%emt 0:08:24]} axb5 {[%emt 0:04:51]} 14. Nxb5 {[%emt 0:00:46]} Qb6 {[%emt 0:00:32]} 15. Rxa8 {[%emt 0:00:46]} Rxa8 {[%emt 0:00:23]} 16. dxc4 {[%emt 0:00:58]} Nc5 {[%emt 0:00:59]} 17. e5 {[%emt 0:02:57]} dxe5 {[%emt 0:00:22]} 18. Nxe5 {[%emt 0:00:37]} Nce4 {[%emt 0:01:17]} 19. b4 {[%emt 0:02:14]} Ra2 {[%emt 0:00:53]} 20. Be3 {[%emt 0:01:07]} Qd8 {[%emt 0:00:34]} 21. f3 {[%emt 0:01:56]} Qb8 {[%emt 0:00:29]} 22. Bd4 {[%emt 0:01:28]} g6 {[%emt 0:00:57]} 23. fxe4 {[%emt 0:01:02]} Bxe4 {[%emt 0:00:22]} 24. Nd7 {[%emt 0:01:13]} Nxd7 {[%emt 0:01:41]} 25. Qxe4 {[%emt 0:00:22]} Nf6 {[%emt 0:00:21]} 26. Qd3 {[%emt 0:01:29]} Ng4 {[%emt 0:00:27]} 27. g3 {[%emt 0:00:33]} e5 {[%emt 0:00:30]} 28. Be3 {[%emt 0:00:32]} Nxe3 {[%emt 0:00:23]} 29. Rxe3 {[%emt 0:00:22]} Ra1+ {[%emt 0:01:17]} 30. Bd1 {[%emt 0:00:20]} Bg5 {[%emt 0:00:25]} 31. Re1 {[%emt 0:00:40]} Ra2 {[%emt 0:00:33]} 32. Bf3 {[%emt 0:00:39]} Rd2 {[%emt 0:00:25]} 33. Qe4 {[%emt 0:00:31]} Qb6+ {[%emt 0:00:24]} 34. Kh1 {[%emt 0:00:27]} Qf2 {[%emt 0:00:22]} 35. Bg2 {[%emt 0:00:30]} Be3 {[%emt 0:00:23]} 36. Rf1 {[%emt 0:00:32]} Qe2 {[%emt 0:00:21]} 37. Qf3 {[%emt 0:00:30]} Qxc4 {[%emt 0:00:28]} 38. Qxe3 {[%emt 0:00:28]} Re2 {[%emt 0:00:43]} 39. Qf3 {[%emt 0:00:10]} e4 {[%emt 0:00:25]} 40. Qf4 {[%emt 0:00:52]} f5 {[%emt 0:00:27]} 41. Nd6 {[%emt 0:30:25]} Qd3 {[%emt 0:30:23]} 42. Qe5 {[%emt 0:00:34]} Rd2 {[%emt 0:00:45]} 43. Qe6+ {[%emt 0:00:28]} Kg7 {[%emt 0:00:22]} 44. Qe7+ {[%emt 0:00:25]} Kh6 {[%emt 0:00:21]} 45. Nf7+ {[%emt 0:00:23]} Kg7 {[%emt 0:00:21]} 46. Ne5+ {[%emt 0:00:20]} 1-0